Cogmind - Beta 16 @@@ ROGUE MODE // 2025.12.15 @ 17:01:54 Player: lvl5hm Result: Self-destructed Performance ------------- Evolutions (4) 2000 Regions Visited (12) 2400 Robots Destroyed (212) 1060 Value Destroyed (7207) 7207 Prototype IDs (51) 1020 Alien Tech Used (0) 0 Bonus (1752) 1752 TOTAL SCORE: 15439 Bonus ------- High Alert Combat Kills 1352 Follower Combat Kills 269 Aligned with FarCom 300 Friendly Fire -169 Cogmind --------- Core Integrity 850/850 Matter 24/300 Energy 100/100 System Corruption 0% Temperature Cool (0) Movement Core (50) Location -6/Factory Parts ------- > --- POWER (2) -------- (None) > --- PROPULSION (3) --- (None) > --- UTILITY (8) ------ Improved Cooling System Hacking Suite > --- WEAPON (2) ------- (None) > --- INVENTORY (5) ---- Armored Huge Wheel Heavy Armor Plating Plasma Cutter Peak State ------------ > --- POWER ------------ Nuclear Core Enhanced Nuclear Core > --- PROPULSION ------- Armored Treads Armored Huge Wheel > --- UTILITY ---------- Improved Heat Sink Improved Cooling System High-capacity Storage Unit Advanced Targeting Computer Advanced Thermal Defense Suite Hacking Suite > --- WEAPON ----------- Neutron Missile Launcher Shock Maul > --- INVENTORY -------- Nuclear Core Enhanced Nuclear Core Experimental Sensor Array Heavy Armor Plating Precision Beam Rifle Precision Beam Rifle Improved Spread Laser Improved Spread Laser EM Pulse Cannon Improved EM Pulse Cannon Heavy Shock Bomb Launcher Precision Rocket Launcher Neutron Missile Launcher Field Lobotomy Kit Plasma Cutter [Rating: 63] Favorites ----------- Power Ion Engine Engine Ion Engine Power Core Nuclear Core Propulsion Light Treads Treads Light Treads Wheel Armored Huge Wheel Utility High-capacity Storage Unit Device Improved Heat Sink Storage High-capacity Storage Unit Processor Advanced Targeting Computer Hackware Hacking Suite Protection Hardened Light Armor Plating Weapon Improved Spread Laser Energy Gun Improved Spread Laser Energy Cannon Beam Cannon Ballistic Gun Assault Rifle Launcher Heavy Shock Bomb Launcher Impact Weapon Shock Maul Special Melee Weapon Datajack Build | -11 -10 -10 -9 -9 -9 -8 -8 -8 -7 -7 -7 -6 ------- Run | Yrd Mat Min Mat Min Exi Min Mat Sto Fac Was Fac Fac Slots Evolved 8 | . . . 2 . . . 2 . 2 . . 2 Power 1 | . . . . . . . . . 1 . . . Propulsion 1 | . . . . . . . . . 1 . . . Utility 6 | . . . 2 . . . 2 . . . . 2 Weapon . | . . . . . . . . . . . . . Parts Attached 129 | 8 9 2 13 3 1 . 31 20 7 3 32 . Power 16 | 1 2 . 1 1 . . 4 . 1 . 6 . Engine 9 | 1 2 . 1 1 . . 1 . 1 . 2 . Core 7 | . . . . . . . 3 . . . 4 . Reactor . | . . . . . . . . . . . . . Propulsion 25 | 2 1 . 3 1 . . 7 7 2 . 2 . Treads 23 | 2 1 . 3 1 . . 7 7 1 . 1 . Leg . | . . . . . . . . . . . . . Wheel 2 | . . . . . . . . . 1 . 1 . Hover . | . . . . . . . . . . . . . Flight . | . . . . . . . . . . . . . Utility 44 | 3 3 . 3 1 . . 13 9 2 1 9 . Device 26 | 2 2 . 1 1 . . 7 7 1 . 5 . Storage 3 | 1 1 . . . . . 1 . . . . . Processor 3 | . . . 1 . . . 1 . 1 . . . Hackware 1 | . . . . . . . . . . . 1 . Protection 11 | . . . 1 . . . 4 2 . 1 3 . Artifact . | . . . . . . . . . . . . . Weapon 44 | 2 3 2 6 . 1 . 7 4 2 2 15 . Energy Gun 16 | . 1 . 5 . . . 7 1 . . 2 . Energy Cannon 11 | . 1 2 . . . . . 1 1 . 6 . Ballistic Gun 2 | 2 . . . . . . . . . . . . Ballistic Cannon . | . . . . . . . . . . . . . Launcher 10 | . . . 1 . . . . 1 . 2 6 . Special Weapon . | . . . . . . . . . . . . . Impact Weapon 4 | . 1 . . . . . . 1 1 . 1 . Slashing Weapon . | . . . . . . . . . . . . . Piercing Weapon . | . . . . . . . . . . . . . Special Melee Weapon 1 | . . . . . 1 . . . . . . . Unidentified Prototypes 14 | . . . 2 . . . 4 2 . . 6 . Corrupted Parts 1 | . . 1 . . . . . . . . . . System Corruption 4 | . . 4 . . . . . . . . . . Parts Lost 32 | . 1 . 1 1 . . 10 3 . . 16 . Power 4 | . . . . . . . 1 . . . 3 . Propulsion 8 | . 1 . . . . . 3 . . . 4 . Utility 14 | . . . 1 1 . . 4 2 . . 6 . Weapon 6 | . . . . . . . 2 1 . . 3 . Highest Loss Streak 9 | . 1 . 1 1 . . 9 3 . . 9 . To Critical Strikes . | . . . . . . . . . . . . . Average Backups 16 | . 7 14 17 18 17 19 19 18 18 18 17 . Power . | . 1 1 1 1 1 1 . . 1 1 1 . Propulsion 2 | . 1 2 2 3 2 2 4 3 1 2 1 . Utility 3 | . 1 3 4 3 4 4 2 3 3 4 4 . Weapon 7 | . 2 7 9 9 8 9 8 8 9 9 8 . Tool/Special . | . . . . . . . . . . . . . Unused Backups 23 | . 2 . 2 . . . 4 2 4 1 5 3 Power 1 | . 1 . . . . . . . . . . . Propulsion 3 | . . . . . . . . 1 1 . . 1 Utility 5 | . . . . . . . 1 . 1 . 2 1 Weapon 12 | . 1 . 2 . . . 3 1 2 1 2 . Tool/Special 2 | . . . . . . . . . . . 1 1 Average Slot Usage (%) 92 | . 99 100 95 99 82 100 87 90 90 92 85 . Engine 7 | . 14 14 11 11 11 11 5 . 4 7 2 . Core 3 | . . . . . . . 3 9 7 7 11 . Treads 18 | . 27 28 21 22 22 22 17 18 11 7 6 . Wheel 1 | . . . . . . . . . 4 7 6 . Device 16 | . 14 14 21 21 22 22 13 18 19 15 11 . Storage 10 | . 14 14 11 11 11 11 9 9 7 7 6 . Processor 4 | . . . 3 . . . 7 9 10 15 8 . Protection 7 | . . . 4 11 11 11 12 8 7 7 5 . Energy Gun 12 | . 10 8 16 21 1 22 15 17 12 11 5 . Energy Cannon 3 | . 1 19 4 . . . . . . 1 5 . Ballistic Gun 2 | . 16 . . . . . . . . . . . Peak Build Rating 63 | 7 11 12 22 22 24 24 35 39 48 55 63 . Average Rating 28 | 5 8 9 19 21 15 23 31 35 42 52 53 . On Entrance 22 | . 7 11 12 22 22 24 23 35 32 47 55 8 Avg Prop Armor Cover (%) 7 | . . . . . . . . . 7 7 6 . Naked Turns . | . . . . . . . . . . . . . Heaviest Build 92 | 14 52 55 57 58 59 59 79 77 71 73 92 . Greatest Support 63 | 40 40 40 40 40 40 40 46 40 63 28 28 . Greatest Overweight (x) 16 | . 1 1 1 1 1 1 2 1 2 2 16 . Average Overweight (x) 1 | . . 1 1 1 1 1 . 1 1 2 2 . Largest Inventory Capacity 20 | 8 20 20 20 20 20 20 20 20 20 20 20 . Average Capacity 19 | 7 18 20 20 20 20 20 20 20 20 20 19 . Most Carried 20 | 2 13 19 20 20 20 20 20 20 20 20 20 . Average Carried 17 | . 8 15 18 19 18 20 19 19 19 19 19 . Final Capacity 20 | 8 20 20 20 20 20 20 20 20 20 20 5 5 Final Carried 20 | 2 13 19 20 20 20 20 20 20 20 20 5 5 Class Distribution -------------------- 53% | Mutant 45% | Scavenger-Mutant Dominant Class ---------------- Mutant | -10/Materials Mutant | -10/Mines Scavenger-Mutant | -9/Materials Scavenger-Mutant | -9/Mines Scavenger-Mutant | -9/Exiles Scavenger-Mutant | -8/Mines Scavenger-Mutant | -8/Materials Scavenger-Mutant | -8/Storage Scavenger-Mutant | -7/Factory Skirmisher | -7/Waste Mutant | -7/Factory Mutant | -6/Factory Resources | -11 -10 -10 -9 -9 -9 -8 -8 -8 -7 -7 -7 -6 ----------- Run | Yrd Mat Min Mat Min Exi Min Mat Sto Fac Was Fac Fac Matter Collected 3708 | 304 318 40 289 207 . 114 495 388 129 92 1332 . Remotely . | . . . . . . . . . . . . . Salvage Created 8946 | 148 552 334 479 242 . . 1373 1490 316 473 3539 . Parts 381 | 13 30 12 34 4 . . 57 75 6 . 150 . Haulers Intercepted 13 | . 2 . 1 . . . 3 2 1 . 4 . Recyclers Shooed 7 | . 1 . . . . . 2 1 1 . 2 . Parts Field Recycled . | . . . . . . . . . . . . . Retrieved Matter . | . . . . . . . . . . . . . Parts Self-Destructed . | . . . . . . . . . . . . . Prevented . | . . . . . . . . . . . . . Parts Restored . | . . . . . . . . . . . . . Kills | -11 -10 -10 -9 -9 -9 -8 -8 -8 -7 -7 -7 -6 ------- Run | Yrd Mat Min Mat Min Exi Min Mat Sto Fac Was Fac Fac Combat Hostiles Destroyed 166 | . 13 4 13 15 . . 25 27 1 2 66 . Guns 88 | . 13 . 6 10 . . 23 27 1 2 6 . Cannons 13 | . . 4 2 . . . . . . . 7 . AOE 51 | . . . 5 5 . . . . . . 41 . Classes Destroyed 20 | 2 4 1 2 1 . . 4 1 2 1 2 . Worker 11 | . . 2 . . . . 2 . 2 . 5 . Builder 6 | . . . . . . . . . 1 . 5 . Tunneler 6 | 3 . . 1 1 . . . . . . 1 . Hauler 13 | . 2 . 1 . . . 3 2 1 . 4 . Recycler 15 | 1 . . . 1 . . 3 5 2 . 3 . Mechanic 3 | . . . . . . . 1 . . . 2 . Operator 2 | . 1 . . . . . . 1 . . . . Drone 1 | . . . . . . . . 1 . . . . Watcher 4 | . . . 1 . . . . 2 . . 1 . Swarmer 22 | . 3 . 5 . . . 2 5 . . 7 . Grunt 72 | . 10 4 5 . . . 14 10 . . 29 . Brawler 6 | . . . . . . . 1 3 . . 2 . Duelist 3 | . . . . . . . 1 1 . . 1 . Protector 2 | . . . . . . . . . . . 2 . Sentry 21 | . . . 3 . . . 6 8 . . 4 . Specialist 7 | . . . . . . . . . . . 7 . Hunter 7 | . . . . . . . 1 . . . 6 . Programmer 9 | . . . . . . . . . 1 . 8 . Compactor 2 | . . . . . . . . . . 2 . . Assembled 14 | . . . . 14 . . . . . . . . Best Kill Streak 14 | 2 2 3 4 5 . . 5 4 3 1 14 . Combat Bots Only 12 | . 2 3 3 4 . . 5 4 1 1 12 . Max Kills in Single Turn 4 | 1 1 1 4 2 . . 2 2 2 1 4 . Gunslinging . | . . . . . . . . . . . . . Exploded 4 | . . . 3 1 . . . . . . 4 . Melee . | . . . . . . . . . . . . . Uniques/NPCs Destroyed 1 | . . . . 1 . . . . . . . . YI-UF0 (-9/Mines) Combat | -11 -10 -10 -9 -9 -9 -8 -8 -8 -7 -7 -7 -6 -------- Run | Yrd Mat Min Mat Min Exi Min Mat Sto Fac Was Fac Fac Hostile Shots Fired 784 | . 60 24 25 25 . 7 171 85 8 . 379 . Missed 261 | . 18 7 7 12 . 2 29 20 2 . 164 . Hits 523 | . 42 17 18 13 . 5 142 65 6 . 215 . Melee 5 | . . . . . . . 4 1 . . . . Projectile 518 | . 42 17 18 13 . 5 138 64 6 . 215 . AOE 8 | . . . . 7 . . . . . . 1 . Critical Strikes 29 | . 4 . . . . . 10 5 1 . 9 . Part Disruptions 2 | . . . . 1 . . . . 1 . . . Damage Taken 9042 | . 555 261 238 374 . 85 2349 953 88 12 4127 . Core 1288 | . 62 60 . 81 . 14 325 101 15 . 630 . Absorbed by Shields 12 | . . . . . . . 12 . . . . . Regen/Repaired (Parts) 965 | . 150 . 94 . . . 115 216 . 213 177 . Core Remaining (%) 51 | 100 . 51 . . . 76 . 22 . . 7 . Volleys Fired 395 | 6 52 17 24 27 . 4 64 56 8 12 125 . Largest 2 | 2 2 2 2 2 . 2 2 2 2 2 2 . Hottest 150 | 40 85 125 122 122 . 136 150 150 150 150 150 . Shots Fired 719 | 12 101 34 44 45 . 10 127 112 15 22 197 . Gun 537 | 12 101 3 34 39 . 10 125 112 14 20 67 . Cannon 117 | . . 31 8 . . . . . 1 . 77 . Launcher 65 | . . . 2 6 . . 2 . . 2 53 . Special . | . . . . . . . . . . . . . Kinetic 85 | 12 73 . . . . . . . . . . . Thermal 469 | . 28 34 42 39 . 10 103 112 14 20 67 . Explosive 37 | . . . 2 6 . . 2 . . 2 25 . Electromagnetic 128 | . . . . . . . 22 . 1 . 105 . Robot Hit Streak 33 | 10 12 18 19 9 . 2 16 33 9 8 19 . Robot Miss Streak 6 | . 3 3 2 4 . 3 5 5 4 3 6 . Penetration Max . | . . . . . . . . . . . . . Secondary Targets 3 | . . . . . . . 1 2 . . . . Max Gunslinging Chain 1 | . . . . . . . 1 1 . . . . Shots Hit Robots 552 | 10 66 24 28 22 4 4 106 95 15 19 159 . Core Hits 571 | 6 31 10 16 22 . 1 128 152 18 21 166 . Critical Kills . | . . . . . . . . . . . . . Critical Parts Destroyed 1 | . . . . . . . . . 1 . . . Critical Strikes 8 | . . . 2 1 . . . . 1 . 4 . Burn 6 | . . . 2 1 . . . . . . 3 . Corrupt 1 | . . . . . . . . . . . 1 . Smash 1 | . . . . . . . . . 1 . . . Melee Attacks 72 | . 2 . 4 . 4 . 26 2 10 . 24 . Impact 68 | . 2 . 4 . . . 26 2 10 . 24 . Slashing . | . . . . . . . . . . . . . Piercing . | . . . . . . . . . . . . . Sneak Attacks 13 | . . . . . 4 . 2 . 3 . 4 . Combat Hostiles . | . . . . . . . . . . . . . Follow-up Attacks . | . . . . . . . . . . . . . Damage Inflicted 19813 | 112 850 434 874 691 . 103 2830 2026 534 612 10747 . Guns 8457 | 112 847 45 468 420 . 103 2338 2006 272 554 1292 . Cannons 2089 | . . 389 90 . . . . . . . 1610 . Explosions 8467 | . . . 292 271 . . 378 10 . 58 7458 . Melee 787 | . . . 24 . . . 114 . 262 . 387 . Ramming 13 | . 3 . . . . . . 10 . . . . Kinetic 669 | 112 557 . . . . . . . . . . . Thermal 8353 | . 290 434 558 420 . 103 1956 2006 272 554 1760 . Explosive 5291 | . . . 292 271 . . 341 10 . 58 4319 . Electromagnetic 4700 | . . . . . . . 419 . . . 4281 . Impact 787 | . . . 24 . . . 114 . 262 . 387 . Slashing . | . . . . . . . . . . . . . Piercing . | . . . . . . . . . . . . . Highest Corruption 19 | . . 4 5 5 5 5 5 5 1 12 19 . Average Corruption 7 | . . 4 5 5 5 5 5 5 1 8 15 . Corruption Purged . | . . . . . . . . . . . . . Corruption Blocked . | . . . . . . . . . . . . . Effects 282 | . . . 20 32 20 25 21 33 4 5 122 . Message Errors 73 | . . . 6 9 4 10 7 11 1 2 23 . Matter Fused 71 | . . . 2 8 9 3 5 9 2 . 33 . Heat Flow Errors 29 | . . . 3 4 . . 3 4 . 1 14 . Energy Discharges 31 | . . . 1 6 3 2 3 5 1 1 9 . Parts Rejected 3 | . . . 1 1 . . . . . . 1 . Parts Fused 4 | . . . 1 . 1 1 . . . . 1 . Data Loss (minor) 33 | . . . 4 1 3 5 2 2 . 1 15 . Data Loss (major) 10 | . . . 2 2 . 2 . . . . 4 . Misfires 11 | . . . . . . 2 1 . . . 8 . Alerts 5 | . . . . . . . . 2 . . 3 . Misdirections 5 | . . . . . . . . . . . 5 . Weapon Failures 7 | . . . . 1 . . . . . . 6 . Overload Shots . | . . . . . . . . . . . . . Overflow Damage 580 | . . . . . . . 65 33 161 . 321 . Projectiles 16 | . . . . . . . . . . . 16 . Explosions 182 | . . . . . . . 13 33 . . 136 . Melee 382 | . . . . . . . 52 . 161 . 169 . Knockbacks 3 | . . . . . . . 1 . 1 . 1 . Impact 3 | . . . . . . . 1 . 1 . 1 . Kinetic . | . . . . . . . . . . . . . Secondary . | . . . . . . . . . . . . . Self-Inflicted Damage 485 | . . . 8 53 . . 41 122 . . 261 . Shots 13 | . . . 1 2 . . 1 2 . . 7 . Rammed 2 | . 1 . . . . . . 1 . . . . Targets Rammed 2 | . 1 . . . . . . 1 . . . . Kicked . | . . . . . . . . . . . . . Crushed . | . . . . . . . . . . . . . Highest Temperature 517 | . 252 144 178 247 . 105 517 193 . 250 465 . Average Temperature 82 | . 73 57 41 69 . 47 122 41 . 38 110 . Received Heat Transfer 2863 | . 336 150 84 60 . 45 1213 360 . . 615 . Effects 16 | . 2 . . . . . 11 . . . 3 . Shutdowns 3 | . . . . . . . 2 . . . 1 . Interference 3 | . 2 . . . . . 1 . . . . . Matter Decay 1 | . . . . . . . . . . . 1 . Short Circuit 1 | . . . . . . . . . . . 1 . Damage (major) 8 | . . . . . . . 8 . . . . . Siege Activations . | . . . . . . . . . . . . . Martial Activations . | . . . . . . . . . . . . . Shielding Activations . | . . . . . . . . . . . . . Robots Disrupted . | . . . . . . . . . . . . . Combat Hostiles . | . . . . . . . . . . . . . Robots Corrupted 16 | . . . . . . . 3 . 1 . 12 . Combat Hostiles 12 | . . . . . . . 2 . . . 10 . Parts Fried 30 | . . . . . . . 5 . 1 . 24 . Impact Corruptions 10 | . . . . . . . 2 . 4 . 4 . Robots Melted 3 | . . . 1 . . . . . . . 2 . Combat Hostiles 2 | . . . . . . . . . . . 2 . Parts Melted 17 | . 1 . 3 . . . . . 1 . 12 . Heat Transferred 10122 | . 666 925 1184 851 . 185 1645 1675 220 450 2321 . Parts Sabotaged . | . . . . . . . . . . . . . Parts Stolen . | . . . . . . . . . . . . . Parts Stripped . | . . . . . . . . . . . . . Power Chain Reactions 8 | . . . . . . . 1 . . . 7 . Alert | -11 -10 -10 -9 -9 -9 -8 -8 -8 -7 -7 -7 -6 ------- Run | Yrd Mat Min Mat Min Exi Min Mat Sto Fac Was Fac Fac Maximum Alert Level 5 | . . . . . . . 1 1 . . 5 . Low Security (%) 78 | 100 100 100 100 100 . 100 97 44 100 100 4 . Level 1 8 | . . . . . . . 2 55 . . 17 . Level 2 . | . . . . . . . . . . . 4 . Level 3 8 | . . . . . . . . . . . 53 . Level 4 3 | . . . . . . . . . . . 19 . Level 5 . | . . . . . . . . . . . 1 . High Security . | . . . . . . . . . . . . . Max Security . | . . . . . . . . . . . . . Peak Influence 1654 | 10 85 88 159 17 . 96 226 299 118 33 1654 . Initial 793 | . . 7 . 17 . . . 93 118 5 1 793 Average 162 | 1 20 10 46 . . 9 47 171 19 12 772 . Influence Increases 5434 | 20 437 127 381 28 . 96 889 850 97 76 2433 . Destroy 0b10 Robot/C 3060 | . 260 80 260 . . 60 560 540 20 . 1280 . Destroy 0b10 Robot/NC 320 | 20 15 20 15 10 . . 45 50 30 . 115 . Destroy Leader 734 | . 74 20 74 . . 10 146 138 12 . 260 . Allied During Kill 33 | . . . . . . 11 14 . . . 8 . Successful Hack 101 | . 11 7 5 . . . 28 16 . . 34 . Select Force Hacks 60 | . 60 . . . . . . . . . . . Disable Machine 495 | . . . . . . 15 45 45 30 . 360 . Destroy Structure 451 | . 2 . 27 18 . . 36 16 5 76 271 . Lose Combat Pursuer 180 | . 15 . . . . . 15 45 . . 105 . Influence Decreases 4641 | 20 418 143 339 73 . 96 666 813 342 89 815 827 Entered New Map 1153 | . . 12 3 28 . . . 130 142 10 1 827 Time Decay 2821 | 20 408 131 326 45 . 96 406 476 200 79 634 . Lost Part 300 | . 10 . 10 . . . 90 30 . . 160 . Lost Ally 102 | . . . . . . . 20 62 . . 20 . Purge Threat 265 | . . . . . . . 150 115 . . . . Squads Dispatched 37 | . 4 . 1 . . . 6 5 1 . 20 . Investigation 9 | . 3 . . . . . 1 1 . . 4 . Extermination 7 | . . . . . . . . . 1 . 6 . Reinforcement 15 | . 1 . 1 . . . 5 1 . . 7 . Assault 3 | . . . . . . . . . . . 3 . Garrison 3 | . . . . . . . . 3 . . . . Intercept . | . . . . . . . . . . . . . Searches Triggered . | . . . . . . . . . . . . . Construction Impeded . | . . . . . . . . . . . . . Haulers Reinforced 3 | . . . . . . . . . . . 3 . Active Scanning Responses . | . . . . . . . . . . . . . Cargo Convoy Interrupts 1 | . . . . . . . . . . . 1 . Stealth | -11 -10 -10 -9 -9 -9 -8 -8 -8 -7 -7 -7 -6 --------- Run | Yrd Mat Min Mat Min Exi Min Mat Sto Fac Was Fac Fac Distress Signals 13 | . 3 . 1 . . . 2 3 . . 4 . Communications Jammed 3 | . . . . . . . . . . . 3 . Distress Signals 3 | . . . . . . . . . . . 3 . Times Spotted 246 | . 32 4 19 16 . 3 40 37 2 6 87 . Peak Tracking Total 8 | . 4 3 4 3 . 3 7 4 1 3 8 . Tactical Retreats 12 | . 1 . . 1 . . 1 3 . . 6 . Traps | -11 -10 -10 -9 -9 -9 -8 -8 -8 -7 -7 -7 -6 ------- Run | Yrd Mat Min Mat Min Exi Min Mat Sto Fac Was Fac Fac Traps Triggered 13 | . 2 . . . . . . 2 3 . 6 . Indirectly 2 | . . . . . . . . . . . 2 . Trap Hack Attempts . | . . . . . . . . . . . . . Triggered . | . . . . . . . . . . . . . Disarmed . | . . . . . . . . . . . . . Reprogrammed . | . . . . . . . . . . . . . Reused . | . . . . . . . . . . . . . Traps Extracted . | . . . . . . . . . . . . . Installed . | . . . . . . . . . . . . . Triggered . | . . . . . . . . . . . . . Machines | -11 -10 -10 -9 -9 -9 -8 -8 -8 -7 -7 -7 -6 ---------- Run | Yrd Mat Min Mat Min Exi Min Mat Sto Fac Was Fac Fac Machines Disabled 33 | . . . . . . 1 3 3 2 . 24 . Max in Single Turn 6 | . . . . . . . 1 2 1 . 6 . Garrison Access 2 | . . . . . . . . 1 . . 1 . Machines Repaired . | . . . . . . . . . . . . . Machines Dismantled . | . . . . . . . . . . . . . Machines Sabotaged . | . . . . . . . . . . . . . Overloaded Fab Kills . | . . . . . . . . . . . . . Hacking | -11 -10 -10 -9 -9 -9 -8 -8 -8 -7 -7 -7 -6 --------- Run | Yrd Mat Min Mat Min Exi Min Mat Sto Fac Was Fac Fac Machines Accessed 43 | . 7 2 8 . 2 . 6 6 2 . 10 . Terminals 23 | . 4 1 5 . . . 3 4 . . 6 . Fabricators . | . . . . . . . . . . . . . Repair Stations 9 | . 1 . 1 . . . 2 1 1 . 3 . Recycling Units 2 | . 2 . . . . . . . . . . . Scanalyzers 4 | . . . 2 . . . 1 . 1 . . . Garrison Access 2 | . . . . . . . . 1 . . 1 . Total Hacks 106 | . 19 4 16 . 2 . 19 17 3 . 26 . Successful 53 | . 12 2 10 . 2 . 7 11 . . 9 . Failed 53 | . 7 2 6 . . . 12 6 3 . 17 . Catastrophic 8 | . 1 . 1 . . . 1 1 1 . 3 . Database Lockouts . | . . . . . . . . . . . . . Manual 42 | . 10 3 8 . 1 . 3 7 . . 10 . Terminals 55 | . 8 3 8 . . . 9 10 . . 17 . Fabricators . | . . . . . . . . . . . . . Repair Stations 30 | . 8 . 4 . . . 8 4 1 . 5 . Recycling Units 3 | . 3 . . . . . . . . . . . Scanalyzers 8 | . . . 4 . . . 2 . 2 . . . Garrison Access 7 | . . . . . . . . 3 . . 4 . Terminal Hacks 14 | . 2 2 1 . 2 . 1 4 . . 2 . Record 1 | . . . . . 1 . . . . . . . Part Schematic 1 | . . 1 . . . . . . . . . . Robot Analysis 2 | . 2 . . . . . . . . . . . Open Door 2 | . . 1 . . . . . 1 . . . . Unreport Threat 3 | . . . . . . . 1 2 . . . . Locate Traps 3 | . . . 1 . . . . 1 . . 1 . Zone Layout 1 | . . . . . . . . . . . 1 . Proto ID Catalog 1 | . . . . . 1 . . . . . . . Fabricator Hacks . | . . . . . . . . . . . . . Repair Station Hacks 19 | . 6 . 4 . . . 3 2 . . 4 . Scan Component 10 | . 3 . 2 . . . 2 1 . . 2 . Repair 9 | . 3 . 2 . . . 1 1 . . 2 . Recycling Unit Hacks 1 | . 1 . . . . . . . . . . . Retrieve Components 1 | . 1 . . . . . . . . . . . Scanalyzer 6 | . . . 4 . . . 2 . . . . . Insert Component 1 | . . . 1 . . . . . . . . . Analyze 1 | . . . 1 . . . . . . . . . Retrieve Study 4 | . . . 2 . . . 2 . . . . . Garrison Access Hacks 2 | . . . . . . . . 1 . . 1 . Seal Access 2 | . . . . . . . . 1 . . 1 . Unauthorized Hacks 11 | . 3 . 1 . . . 1 4 . . 2 . Terminals 9 | . 1 . 1 . . . 1 4 . . 2 . Botnet 7 | . 1 . 1 . . . 1 2 . . 2 . Skim 2 | . . . . . . . . 2 . . . . Fabricators . | . . . . . . . . . . . . . Repair Stations . | . . . . . . . . . . . . . Recycling Units 2 | . 2 . . . . . . . . . . . Tunnel 2 | . 2 . . . . . . . . . . . Scanalyzers . | . . . . . . . . . . . . . Garrison Access . | . . . . . . . . . . . . . Data Cores Recovered . | . . . . . . . . . . . . . Used . | . . . . . . . . . . . . . Hacking Detections 32 | . 5 1 5 . . . 6 4 2 . 9 . Full Trace Events 3 | . . . . . . . . . . . 3 . Feedback Events . | . . . . . . . . . . . . . Feedback Blocked . | . . . . . . . . . . . . . Robot Schematics Acquired . | . . . . . . . . . . . . . Robots Built . | . . . . . . . . . . . . . Authchips . | . . . . . . . . . . . . . Time . | . . . . . . . . . . . . . Total Robot Build Rating . | . . . . . . . . . . . . . Part Schematics Acquired 2 | . . 1 1 . . . . . . . . . Parts Built . | . . . . . . . . . . . . . Authchips . | . . . . . . . . . . . . . Time . | . . . . . . . . . . . . . Total Part Build Rating . | . . . . . . . . . . . . . Part Studies Acquired 4 | . . . 2 . . . 2 . . . . . Parts Repaired 9 | . 3 . 2 . . . 1 1 . . 2 . Time 235 | . 78 . 52 . . . 32 19 . . 54 . Parts Recycled . | . . . . . . . . . . . . . Recycled Matter . | . . . . . . . . . . . . . Retrieved Matter . | . . . . . . . . . . . . . Retrieved Components 10 | . 10 . . . . . . . . . . . Parts Scanalyzed 1 | . . . 1 . . . . . . . . . Part Schematics Acquired 1 | . . . 1 . . . . . . . . . Parts Damaged . | . . . . . . . . . . . . . Bothacking | -11 -10 -10 -9 -9 -9 -8 -8 -8 -7 -7 -7 -6 ------------ Run | Yrd Mat Min Mat Min Exi Min Mat Sto Fac Was Fac Fac Used RIF Installer . | . . . . . . . . . . . . . Robots Hacked 4 | . . . . . 4 . . . . . . . Non-combat 3 | . . . . . 3 . . . . . . . Combat 1 | . . . . . 1 . . . . . . . Robot Hacks Applied 4 | . . . . . 4 . . . . . . . parse_system 4 | . . . . . 4 . . . . . . . Relay Couplers Released . | . . . . . . . . . . . . . Fabnet Peak Effective % . | . . . . . . . . . . . . . Robots Rewired . | . . . . . . . . . . . . . Allies Hacked . | . . . . . . . . . . . . . Hacks Repelled . | . . . . . . . . . . . . . Allies | -11 -10 -10 -9 -9 -9 -8 -8 -8 -7 -7 -7 -6 -------- Run | Yrd Mat Min Mat Min Exi Min Mat Sto Fac Was Fac Fac Total Allies 21 | . . . . 3 . . . . . 18 . . Largest Group 18 | . . . . 3 3 3 3 . . 18 3 . Highest-Rated Group 434 | . . . . 40 40 40 39 . . 434 84 . Highest-Rated Ally 35 | . . . . 16 16 16 16 . . 35 31 . Total Orders 6 | . . . . . . . 2 4 . . . . STAY 1 | . . . . . . . 1 . . . . . FOLLOW 1 | . . . . . . . 1 . . . . . EXPLORE 4 | . . . . . . . . 4 . . . . Ally Attacks 168 | . . . . 1 . 14 30 . . 120 3 . Total Damage 4421 | . . . . 13 . 190 361 . . 3814 43 . Kills 18 | . . . . 1 . 3 3 . . 11 . . Allies Corrupted 1 | . . . . . . . . 1 . . . . Allies Melted . | . . . . . . . . . . . . . Intel | -11 -10 -10 -9 -9 -9 -8 -8 -8 -7 -7 -7 -6 ------- Run | Yrd Mat Min Mat Min Exi Min Mat Sto Fac Was Fac Fac Active Infowar (turns) 8197 | 46 1701 1374 1047 1459 1000 1004 1 . . 186 379 . Sensors 197 | . . . . . . . 1 . . 186 10 . Seismic 7631 | 46 1701 1374 1047 1459 1000 1004 . . . . . . Jamming 369 | . . . . . . . . . . . 369 . Robot Analysis Total 2 | . 2 . . . . . . . . . . . Derelict Logs Recovered 3 | . . 1 . 2 . . . . . . . . Drone Launches 19 | . . . . . . . . 19 . . . . Drone Recoveries 5 | . . . . . . . . 5 . . . . Exploration | -11 -10 -10 -9 -9 -9 -8 -8 -8 -7 -7 -7 -6 ------------- Run | Yrd Mat Min Mat Min Exi Min Mat Sto Fac Was Fac Fac Turns Passed 16394 | 118 2087 1443 1071 1459 1000 1005 3119 1395 927 204 2566 . Spaces Moved 6910 | 56 738 565 363 554 491 486 1069 502 590 106 1390 . Core 28 | 3 . . . . . . . . . . 25 . Treads 4979 | 53 738 565 363 554 491 486 1069 502 158 . . . Legs . | . . . . . . . . . . . . . Wheels 1903 | . . . . . . . . . 432 106 1365 . Hover . | . . . . . . . . . . . . . Flight . | . . . . . . . . . . . . . Fastest Speed 50 | 50 160 240 200 200 200 200 160 200 130 130 50 . Average Speed 190 | 154 224 240 232 200 200 200 215 200 138 130 135 . Slowest Speed 850 | 160 240 240 240 200 200 200 240 200 320 130 850 . Overloaded Moves . | . . . . . . . . . . . . . Propulsion Burnouts . | . . . . . . . . . . . . . Robots Hopped . | . . . . . . . . . . . . . Potential Cave-ins . | . . . . . . . . . . . . . Cave-ins Triggered . | . . . . . . . . . . . . . Exploration Rate (%) 63 | 4 99 99 45 94 67 95 60 75 11 79 34 . Regions Visited 12 Branch Regions 5 Pre-discovered Areas 5 | . 2 . . 2 1 . . . . . . . Known Exits Taken 1 | . . . . . . . . . . . 1 . Unknown Exits Taken 9 | 1 1 1 1 1 1 1 1 1 . . . . Scrap Searched 5 | . . 1 . 3 . 1 . . . . . . Spaces Dug 94 | . 1 . 14 29 . . 17 . 5 9 19 . Terrain Destroyed 510 | . 1 . 24 53 . . 36 14 5 13 364 . Melee 44 | . 1 . 2 . . . 17 . 5 . 19 . Projectile 2 | . . . . 2 . . . . . . . . AOE 464 | . . . 22 51 . . 19 14 . 13 345 . Terrain Rammed . | . . . . . . . . . . . . . Walls Destroyed . | . . . . . . . . . . . . . Machines Disabled . | . . . . . . . . . . . . . Actions | -11 -10 -10 -9 -9 -9 -8 -8 -8 -7 -7 -7 -6 --------- Run | Yrd Mat Min Mat Min Exi Min Mat Sto Fac Was Fac Fac Total 9283 | 73 1065 617 533 857 510 512 1707 784 671 150 1804 . Wait 1469 | 2 239 24 103 267 . 22 461 155 20 22 154 . Move 6900 | 55 737 564 362 553 490 485 1068 502 590 105 1389 . Hop . | . . . . . . . . . . . . . Pick Up 82 | 2 14 6 6 1 5 . 13 8 7 2 18 . Fast Attach 48 | 7 3 . 5 1 1 . 15 9 1 . 6 . Attach 27 | . 1 . 3 1 2 . 8 2 3 . 7 . Detach 9 | . . . 2 . 1 1 2 . . . 3 . Swap 160 | 1 11 5 17 6 1 . 28 19 7 6 59 . Drop 97 | . 5 1 7 1 6 . 22 24 9 3 19 . Fire 395 | 6 52 17 24 27 . 4 64 56 8 12 125 . Melee 72 | . 2 . 4 . 4 . 26 2 10 . 24 . Ram . | . . . . . . . . . . . . . Kick . | . . . . . . . . . . . . . Crush 1 | . 1 . . . . . . . . . . . Escape Stasis 16 | . . . . . . . . . 16 . . . Rewire . | . . . . . . . . . . . . . Trap . | . . . . . . . . . . . . . Miscellaneous 7 | . . . . . . . . 7 . . . . Route ------- -11/Scrapyard -10/Materials (discovered 5 exits: *Mat x3 / *Min / [*Sub]) -10/Mines (discovered 3 exits: *Mat x2 / [*Sub]) -9/Materials (discovered 2 exits: *Mat / [*Min]) -9/Mines (discovered 3 exits: *Mat / *Exi / [*Zio]) -9/Exiles -8/Mines -8/Materials -8/Storage -7/Factory -7/Waste -7/Factory (discovered 2 exits: *Fac x2) -6/Factory History --------- Turn | Location | Event 43 | -11/Scrapyard | Discovered new exit (range 14) 119 | -11/Scrapyard | Entered Materials 198 | -10/Materials | Discovered new exit (range 6) 274 | -10/Materials | Discovered new exit (range 11) 317 | -10/Materials | Build established: Mutant 707 | -10/Materials | Repaired Lgt. Treads 735 | -10/Materials | Repaired Assault Rifle 762 | -10/Materials | Repaired Lgt. Treads 906 | -10/Materials | Discovered new exit (range 14) 1771 | -10/Materials | Discovered new exit (range 15) 2186 | -10/Materials | Discovered new exit (range 6) 2206 | -10/Materials | Entered Mines 2452 | -10/Mines | Discovered new exit (range 8) 2618 | -10/Mines | Discovered new exit (range 9) 2653 | -10/Mines | Received a Rocket Launcher from a helpful Derelict 2763 | -10/Mines | Discovered new exit (range 11) 2844 | -10/Mines | Met a Derelict who couldn't figure out how to use a Trap Extractor 2925 | -10/Mines | Learned Materials interactive machine intel 3649 | -10/Mines | Entered Materials 3649 | -9/Materials | Evolved 2 slots: Utility x2 3650 | -9/Materials | Loaded intel: 18 interactive machine locations 4284 | -9/Materials | Discovered new exit (range 16) 4344 | -9/Materials | Repaired Lgt. Treads 4372 | -9/Materials | Repaired Lgt. Treads 4393 | -9/Materials | Build established: Scavenger-Mutant 4697 | -9/Materials | Discovered new exit (range 11) 4720 | -9/Materials | Entered Mines 4721 | -9/Mines | Assembled infested the area 5160 | -9/Mines | Destroyed YI-UF0 5385 | -9/Mines | Found a damaged Exp. Sensor Array with a note attached 5392 | -9/Mines | Found Prototype Device 5460 | -9/Mines | Discovered new exit (range 12) 5488 | -9/Mines | Learned location of Zion (-7) 5644 | -9/Mines | A Derelict revealed a hidden shortcut to a safe place 5762 | -9/Mines | Assisted by bots powering up and referring to "LRC-V3" 6171 | -9/Mines | Deemed a non-threat by the Exiles lab entrance 6171 | -9/Mines | Discovered new exit (range 5) 6179 | -9/Mines | Entered Exiles 6179 | -9/Exiles | Accompanied by 3 allies 6229 | -9/Exiles | Met 8R-AWN 6264 | -9/Exiles | Met EX-HEX 6320 | -9/Exiles | Met EX-BIN 6348 | -9/Exiles | Aligned with FarCom system 6350 | -9/Exiles | Given EX-Vault access code 6398 | -9/Exiles | Opened EX-Vault 6414 | -9/Exiles | Found Field Lobotomy Kit 6459 | -9/Exiles | Warned to stay clear of 0b10 Research branches 6535 | -9/Exiles | Met EX-DEC 6647 | -9/Exiles | Discovered new exit (range 15) 7179 | -9/Exiles | Left Exiles lab with Field Lobotomy Kit 7179 | -9/Exiles | Entered Mines 7179 | -8/Mines | Accompanied by 3 allies 8077 | -8/Mines | Discovered new exit (range 14) 8184 | -8/Mines | Entered Materials 8184 | -8/Materials | Accompanied by 3 allies 8184 | -8/Materials | Evolved 2 slots: Utility x2 8184 | -8/Materials | Identified Exp. Sensor Array 8374 | -8/Materials | Repaired Hrd. Light Armor Plating 8467 | -8/Materials | Discovered new exit (range 13) 8717 | -8/Materials | Build established: Mutant 9826 | -8/Materials | Lost 9 parts (1p3n3u2w) 9844 | -8/Materials | Core integrity fell below 50% 10180 | -8/Materials | Build established: Scavenger-Mutant 11303 | -8/Materials | Entered Storage 11401 | -8/Storage | Repaired Hvy. Armor Plating 11638 | -8/Storage | Lost 6 allies 11712 | -8/Storage | Garrison activated, responded to threat 12591 | -8/Storage | Lost 3 parts (2u1w) 12668 | -8/Storage | Discovered new exit (range 15) 12698 | -8/Storage | Entered Factory 12698 | -7/Factory | Evolved 2 slots: Power x1, Propulsion x1 13094 | -7/Factory | Discovered new exit (range 6) 13188 | -7/Factory | Identified exit to Factory 13494 | -7/Factory | Build established: Mutant 13625 | -7/Factory | Sucked down chute 13625 | -7/Factory | Entered Waste 13635 | -7/Waste | Spotted C-40 Crusher 13640 | -7/Waste | EMP discharged 13670 | -7/Waste | Spotted C-40 Crusher 13682 | -7/Waste | Met Warlord forces unprepared to attack 13687 | -7/Waste | Spotted C-40 Crusher 13691 | -7/Waste | Destroyed C-40 Crusher 13693 | -7/Waste | Spotted C-40 Crusher 13697 | -7/Waste | Allies destroyed C-40 Crusher 13705 | -7/Waste | Allies destroyed C-40 Crusher 13736 | -7/Waste | Lost 6 allies 13740 | -7/Waste | EMP discharged 13740 | -7/Waste | System corruption reached 10% 13765 | -7/Waste | Spotted C-40 Crusher 13766 | -7/Waste | Spotted C-40 Crusher 13770 | -7/Waste | Allies destroyed C-40 Crusher 13776 | -7/Waste | Allies destroyed C-40 Crusher 13786 | -7/Waste | Destroyed C-40 Crusher 13816 | -7/Waste | Discovered new exit (range 11) 13828 | -7/Waste | Identified exit to Factory 13829 | -7/Waste | Entered Factory 13829 | -7/Factory | Accompanied by 3 allies 13953 | -7/Factory | Destroyed 8 combat bots 14393 | -7/Factory | Destroyed 7 combat bots 14426 | -7/Factory | Cargo convoy interrupted 14466 | -7/Factory | Destroyed 10 combat bots 14496 | -7/Factory | Found Prototype Launcher 14500 | -7/Factory | Identified Scatter Rocket Array 14508 | -7/Factory | Lost 5 parts (2n2u1w) 14629 | -7/Factory | First assault squad dispatched 14657 | -7/Factory | Core integrity fell below 50% 14871 | -7/Factory | Repaired EM Pulse Cannon+ 15271 | -7/Factory | Repaired Imp. Spread Laser 15668 | -7/Factory | Destroyed 12 combat bots 15929 | -7/Factory | Discovered exit to Factory (range 9) 16320 | -7/Factory | Discovered exit to Factory (range 10) 16370 | -7/Factory | Core integrity fell below 20% 16383 | -7/Factory | Destroyed 7 combat bots 16395 | -7/Factory | Entered another Factory area 16395 | -6/Factory | Evolved 2 slots: Utility x2 16395 | -6/Factory | Self-destructed Last Messages --------------- 16375_ The unstable cave ceiling collapses. 16377_ K-01 Serf collects debris. 16379_ The unstable cave ceiling collapses. 16380_ Penetrated by Slug. 16380_ Nuclear Core destroyed. 16380_ Hcp. Storage Unit destroyed. 16380_ Knocked back. 16381_ K-01 Serf collects debris. 16384_ The unstable cave ceiling collapses. 16384_ K-01 Serf collects debris. 16385_ The unstable cave ceiling collapses. 16385_ Knocked back. 16388_ K-01 Serf collects debris. 16393_ System corrupted: Component data lost. 16393_ The unstable cave ceiling collapses. 16393_ K-01 Serf collects debris. PARAMETERS=UTILITY+2 LOCATION=FACTORY GOAL=ESCAPE 16395_ Receiving FarCom transmissions... Map ----- +----------------------------------------------------+ | ?????????????????????????????????????????????????? | | ?????????????????????????????????????????????????? | | ?????????????????????????????????????????????????? | | ?????????????????????????????????????????????????? | | ?????????????????????????????????????????????????? | | ?????????????????????????????????????????????????? | | ?????????????????????????????????????????????????? | | ?????????????????????????????????????????????????? | | ?????????????????????????????????????????????????? | | ?????????????????????????????????????????????????? | | ?????????????????????????????????????????????????? | | ?????????????????????????????????????????????????? | | ?????????????????????????????????????????????????? | | ?????????????????????????????????????????????????? | | ?????????????????????????????????????????????????? | | ?????????????????????????????????????????????????? | | ?????????????????????????????????????????????????? | | ?????????????????????????????????????????????????? | | ?????????????????????????????????????????????????? | | ?????????????????????????????????????????????????? | | ?????????????????????????????????????????????????? | | ?????????????????????????????????????????????????? | | ??????????????????????#######????????????????????? | | ??????????????????????# #????????????????????? | | ??????????????????????# #????????????????????? | | ??????????????????????# @ #????????????????????? | | ??????????????????????# +????????????????????? | | ??????????????????????# #????????????????????? | | ??????????????????????# #????????????????????? | | ??????????????????????# #????????????????????? | | ??????????????????????# #????????????????????? | | ??????????????????????# #????????????????????? | | ??????????????????????# #????????????????????? | | ??????????????????????+ #????????????????????? | | ??????????????????????# ????????????????????? | | ??????????????????????# ????????????????????? | | ??????????????????????# ????????????????????? | | ??????????????????????# ##???????????????????? | | ??????????????????????# #????????????????????? | | ??????????????????????# #????????????????????? | | ????????????????????Y?? ?????????????????????? | | ?????????????????????????????????????????????????? | | ?????????????????????????????????????????????????? | | ?????????????????????????????????????????????????? | | ?????????????????????????????????????????????????? | | ?????????????????????????????????????????????????? | | ?????????????????????????????????????????????????? | | ?????????????????????????????????????????????????? | | ?????????????????????????????????????????????????? | | ?????????????????????????????????????????????????? | +----------------------------------------------------+ Best States ------------- Heat Dissipation 89 Energy Generation 28 Energy Capacity 490 Matter Stores 300 Matter Capacity 300 Sight Range 16 Robot Scan Range 20 Terrain Scan Density 10 Jamming Range 12 Armor Coverage 750 Resistance: EM 15 Evasion (%) 50 Targeting Accuracy 8 Recoil Reduction 3 Offensive Hacking 10 Item Schematics ----------------- Seismic Detector | -10/Mines | Hacked Hacking Suite | -9/Materials | Scanalyzed Robot Schematics ------------------ None Fabricated ------------ Nothing Repaired ---------- Lgt. Treads | 64% | -10/Materials Assault Rifle | 44% | -10/Materials Lgt. Treads | 68% | -10/Materials Lgt. Treads | 62% | -9/Materials Lgt. Treads | 70% | -9/Materials Hrd. Light Armor Plating | 36% | -8/Materials Hvy. Armor Plating | 28% | -8/Storage EM Pulse Cannon | 32% | -7/Factory Imp. Spread Laser | 46% | -7/Factory Studied --------- Lgt. Treads | -9/Materials | Hacked Rocket Launcher | -9/Materials | Hacked EM Pulse Cannon | -8/Materials | Hacked Arm. Treads | -8/Materials | Hacked Alien Tech Used ----------------- None Achievements -------------- None Challenges ------------ None Game ------ Seed NuclearAccelerationReplica Manual? 0 Play Time 01:44:37 Cumulative 297.8 hours Start 2025.12.15 @ 03:54:01 End 2025.12.15 @ 17:01:54 Sessions 4 Manual Loads 0 Difficulty Rogue Special Mode None Game No. 213 Rogue 213 Adventurer 0 Explorer 0 Win Type - Total 13 Types 7/1/2/1/0/0/0/1/0/1 Lore% 72 Gallery% 77 Achievement% 70 Wizard Run 0 Options --------- Layout 2 ASCII 0 Keyboard 1 Movement Arrows Keybinds 0 Fullscreen 1 Font 32/Tamsyn Map View 50x44 Zoom Use 0% Tactical HUD 1 Map Filters NONE Filters NONE Steam 1 RUN: 91299306-06dd-498a-9779-dc421819b20e